[Event "*** Titled Tuesday Blitz"]
[Site "Chess.com"]
[Date "2021.02.02"]
[Round "1"]
[White "lucachess49"]
[Black "Iskusnyh"]
[Result "0-1"]
[WhiteElo "2325"]
[BlackElo "2620"]
[TimeControl "180+1"]
[EndTime "10:07:09 PST"]
[Termination "Iskusnyh won by checkmate"]

1. d4 {[%clk 0:03:00.5]} 1... d5 {[%clk 0:02:58.6]} 2. c4 {[%clk 0:03:00.7]}
2... c6 {[%clk 0:02:57.3]} 3. Nc3 {[%clk 0:03:01]} 3... Nf6 {[%clk 0:02:55.7]}
4. e3 {[%clk 0:02:58.8]} 4... e6 {[%clk 0:02:54.4]} 5. Nf3 {[%clk 0:02:58.3]}
5... a6 {[%clk 0:02:53.7]} 6. Be2 {[%clk 0:02:36.3]} 6... c5 {[%clk 0:02:49.9]}
7. cxd5 {[%clk 0:02:32.5]} 7... exd5 {[%clk 0:02:49.3]} 8. O-O {[%clk
0:02:33.1]} 8... Nc6 {[%clk 0:02:47.5]} 9. b3 {[%clk 0:02:30.7]} 9... cxd4
{[%clk 0:02:36.2]} 10. Nxd4 {[%clk 0:02:31.6]} 10... Bd6 {[%clk 0:02:30.6]} 11.
Bb2 {[%clk 0:02:29.4]} 11... O-O {[%clk 0:02:29.8]} 12. Rc1 {[%clk 0:02:15.2]}
12... Qe7 {[%clk 0:02:06.4]} 13. Nxc6 {[%clk 0:02:07.3]} 13... bxc6 {[%clk
0:02:06]} 14. Na4 {[%clk 0:02:06.6]} 14... Bb7 {[%clk 0:01:59.6]} 15. Qd4 {[%clk
0:01:57]} 15... Rfe8 {[%clk 0:01:17.1]} 16. Nc5 {[%clk 0:01:39]} 16... Bc8
{[%clk 0:01:16.2]} 17. Bf3 {[%clk 0:01:08.5]} 17... a5 {[%clk 0:01:14.9]} 18. g3
{[%clk 0:01:06.1]} 18... Rb8 {[%clk 0:01:14.2]} 19. Rfe1 {[%clk 0:01:01.9]}
19... Rb4 {[%clk 0:01:13]} 20. Qc3 {[%clk 0:00:58.5]} 20... Bg4 {[%clk
0:01:04.1]} 21. Bxg4 {[%clk 0:00:54.2]} 21... Rxg4 {[%clk 0:01:03.5]} 22. e4
{[%clk 0:00:17.4]} 22... dxe4 {[%clk 0:00:16.4]} 23. h3 {[%clk 0:00:16.3]} 23...
Rg5 {[%clk 0:00:14.3]} 24. Nd3 {[%clk 0:00:08]} 24... Nd5 {[%clk 0:00:11.9]} 25.
Qd4 {[%clk 0:00:07.1]} 25... e3 {[%clk 0:00:11.8]} 26. f4 {[%clk 0:00:05.6]}
26... Rxg3+ {[%clk 0:00:11.3]} 27. Kh2 {[%clk 0:00:06.2]} 27... Qh4 {[%clk
0:00:10.9]} 28. Nf2 {[%clk 0:00:04.7]} 28... Bxf4 {[%clk 0:00:09]} 29. Kh1
{[%clk 0:00:03.7]} 29... Rxh3+ {[%clk 0:00:08.3]} 30. Nxh3 {[%clk 0:00:03.9]}
30... Qxh3+ {[%clk 0:00:08.6]} 31. Kg1 {[%clk 0:00:04.6]} 31... Qh2+ {[%clk
0:00:09.3]} 32. Kf1 {[%clk 0:00:04.8]} 32... Qf2# {[%clk 0:00:10.2]} 0-1

[Event "*** Titled Tuesday Blitz"]
[Site "Chess.com"]
[Date "2021.02.02"]
[Round "1"]
[White "Gmedmundo"]
[Black "frederiksvane"]
[Result "0-1"]
[WhiteElo "2401"]
[BlackElo "2761"]
[TimeControl "180+1"]
[EndTime "10:07:11 PST"]
[Termination "frederiksvane won on time"]

1. e4 {[%clk 0:03:00.9]} 1... c5 {[%clk 0:02:59.5]} 2. Nf3 {[%clk 0:03:00.1]}
2... Nc6 {[%clk 0:02:56.1]} 3. Bb5 {[%clk 0:02:59.1]} 3... g6 {[%clk 0:02:55.5]}
4. Bxc6 {[%clk 0:02:58.2]} 4... dxc6 {[%clk 0:02:56.4]} 5. d3 {[%clk 0:02:56.4]}
5... Bg7 {[%clk 0:02:56.2]} 6. h3 {[%clk 0:02:55.9]} 6... Nf6 {[%clk 0:02:56.4]}
7. Nc3 {[%clk 0:02:55.6]} 7... Nd7 {[%clk 0:02:54.2]} 8. Be3 {[%clk 0:02:44.1]}
8... b6 {[%clk 0:02:51.2]} 9. Qd2 {[%clk 0:02:42.6]} 9... h6 {[%clk 0:02:51.3]}
10. O-O {[%clk 0:02:41.1]} 10... e5 {[%clk 0:02:50.4]} 11. Nh2 {[%clk
0:02:40.2]} 11... Nf8 {[%clk 0:02:50.5]} 12. f4 {[%clk 0:02:39.5]} 12... exf4
{[%clk 0:02:51.4]} 13. Bxf4 {[%clk 0:02:38.6]} 13... Ne6 {[%clk 0:02:51]} 14.
Bg3 {[%clk 0:02:37.2]} 14... Qg5 {[%clk 0:02:45.2]} 15. Qe1 {[%clk 0:02:36.1]}
15... Nd4 {[%clk 0:02:45.3]} 16. Qf2 {[%clk 0:02:26.5]} 16... O-O {[%clk
0:02:45.3]} 17. Bh4 {[%clk 0:01:41.8]} 17... Qe5 {[%clk 0:02:19.9]} 18. Nf3
{[%clk 0:01:27.7]} 18... Qh5 {[%clk 0:02:02.6]} 19. Bg3 {[%clk 0:00:52.5]} 19...
f5 {[%clk 0:01:38.9]} 20. e5 {[%clk 0:00:51.7]} 20... f4 {[%clk 0:01:32]} 21.
Bh2 {[%clk 0:00:49.9]} 21... Nxf3+ {[%clk 0:01:17.5]} 22. Qxf3 {[%clk
0:00:49.6]} 22... Qxe5 {[%clk 0:01:06.2]} 23. Kh1 {[%clk 0:00:44.9]} 23... g5
{[%clk 0:01:05.2]} 24. Rae1 {[%clk 0:00:39.7]} 24... Qd6 {[%clk 0:00:59.9]} 25.
Ne4 {[%clk 0:00:37.9]} 25... Qd5 {[%clk 0:00:57.6]} 26. c4 {[%clk 0:00:32.9]}
26... Qd4 {[%clk 0:00:52.6]} 27. b3 {[%clk 0:00:29.2]} 27... Bf5 {[%clk
0:00:35]} 28. Bg1 {[%clk 0:00:27.2]} 28... Qd7 {[%clk 0:00:34.5]} 29. Rd1 {[%clk
0:00:18.9]} 29... Rad8 {[%clk 0:00:30.6]} 30. Nf2 {[%clk 0:00:17]} 30... Qe6
{[%clk 0:00:25.2]} 31. Rfe1 {[%clk 0:00:13.7]} 31... Qg6 {[%clk 0:00:23.9]} 32.
Ne4 {[%clk 0:00:11.1]} 32... h5 {[%clk 0:00:18]} 33. Rf1 {[%clk 0:00:06.7]}
33... Bh6 {[%clk 0:00:18]} 34. Qe2 {[%clk 0:00:02.4]} 34... Rfe8 {[%clk
0:00:16.7]} 0-1

[Event "*** Titled Tuesday Blitz"]
[Site "Chess.com"]
[Date "2021.02.02"]
[Round "1"]
[White "Sanyura"]
[Black "hypert"]
[Result "1-0"]
[WhiteElo "2707"]
[BlackElo "2379"]
[TimeControl "180+1"]
[EndTime "10:07:11 PST"]
[Termination "Sanyura won by resignation"]

1. e4 {[%clk 0:02:55.7]} 1... e5 {[%clk 0:02:58.7]} 2. Nf3 {[%clk 0:02:55.1]}
2... Nc6 {[%clk 0:02:58]} 3. Bb5 {[%clk 0:02:54.8]} 3... a6 {[%clk 0:02:57.4]}
4. Ba4 {[%clk 0:02:54.2]} 4... Nf6 {[%clk 0:02:57.9]} 5. O-O {[%clk 0:02:53.5]}
5... Be7 {[%clk 0:02:58.5]} 6. Re1 {[%clk 0:02:53.1]} 6... b5 {[%clk 0:02:59]}
7. Bb3 {[%clk 0:02:51.9]} 7... d6 {[%clk 0:02:59.6]} 8. c3 {[%clk 0:02:49.3]}
8... O-O {[%clk 0:02:59.4]} 9. h3 {[%clk 0:02:48.9]} 9... Nb8 {[%clk 0:02:59.3]}
10. d4 {[%clk 0:02:44]} 10... Nbd7 {[%clk 0:02:59.6]} 11. Nbd2 {[%clk
0:02:43.8]} 11... Bb7 {[%clk 0:02:59.1]} 12. Bc2 {[%clk 0:02:39.7]} 12... Re8
{[%clk 0:02:59.2]} 13. Nf1 {[%clk 0:02:39.4]} 13... Bf8 {[%clk 0:02:59.8]} 14.
Ng3 {[%clk 0:02:39.1]} 14... g6 {[%clk 0:03:00]} 15. a4 {[%clk 0:02:34.4]} 15...
Bg7 {[%clk 0:02:52.7]} 16. a5 {[%clk 0:02:34.2]} 16... b4 {[%clk 0:02:28.9]} 17.
dxe5 {[%clk 0:02:21.5]} 17... Nxe5 {[%clk 0:02:14.3]} 18. Nxe5 {[%clk
0:02:21.2]} 18... Rxe5 {[%clk 0:02:15.2]} 19. cxb4 {[%clk 0:02:20.8]} 19... h5
{[%clk 0:01:59.9]} 20. Bf4 {[%clk 0:02:03.6]} 20... Rb5 {[%clk 0:01:58]} 21. Bd2
{[%clk 0:01:58.4]} 21... h4 {[%clk 0:01:54.8]} 22. Nf1 {[%clk 0:01:58.1]} 22...
d5 {[%clk 0:01:21.8]} 23. e5 {[%clk 0:01:53.7]} 23... Ne4 {[%clk 0:01:16.6]} 24.
Bxe4 {[%clk 0:01:50.7]} 24... dxe4 {[%clk 0:01:14.8]} 25. e6 {[%clk 0:01:51]}
25... fxe6 {[%clk 0:01:11.4]} 26. Qg4 {[%clk 0:01:42.3]} 26... Qf6 {[%clk
0:00:55.1]} 27. Bc3 {[%clk 0:01:37.9]} 27... Qf5 {[%clk 0:00:55.1]} 28. Ne3
{[%clk 0:01:23.4]} 28... Qxg4 {[%clk 0:00:51.4]} 29. Nxg4 {[%clk 0:01:23.2]}
29... c5 {[%clk 0:00:38.1]} 30. bxc5 {[%clk 0:01:18.9]} 30... Bxc3 {[%clk
0:00:33.5]} 31. bxc3 {[%clk 0:01:19.8]} 31... Rc8 {[%clk 0:00:30.2]} 32. Rad1
{[%clk 0:00:51.2]} 32... Rbxc5 {[%clk 0:00:25.2]} 33. Rd6 {[%clk 0:00:50.9]}
33... R8c6 {[%clk 0:00:22.2]} 34. Rd8+ {[%clk 0:00:44.9]} 34... Kf7 {[%clk
0:00:21.6]} 35. Rd7+ {[%clk 0:00:45]} 35... Ke8 {[%clk 0:00:22]} 36. Rxb7 {[%clk
0:00:45.4]} 36... Rxa5 {[%clk 0:00:22.1]} 37. Nf6+ {[%clk 0:00:42.3]} 37... Kd8
{[%clk 0:00:21.2]} 38. Rd1+ {[%clk 0:00:40.9]} 38... Kc8 {[%clk 0:00:21.1]} 39.
Rg7 {[%clk 0:00:39.9]} 39... Rxc3 {[%clk 0:00:18.2]} 40. Rdd7 {[%clk 0:00:39]}
40... Kb8 {[%clk 0:00:18.2]} 41. Rb7+ {[%clk 0:00:37.3]} 41... Ka8 {[%clk
0:00:17.7]} 42. Ra7+ {[%clk 0:00:32.5]} 42... Kb8 {[%clk 0:00:17.8]} 43. Rgb7+
{[%clk 0:00:33.1]} 43... Kc8 {[%clk 0:00:17.8]} 44. Nd7 {[%clk 0:00:33.4]} 44...
Rb5 {[%clk 0:00:13.5]} 45. Nb6+ {[%clk 0:00:30.1]} 45... Rxb6 {[%clk 0:00:13.5]}
46. Rxb6 {[%clk 0:00:31]} 1-0

[Event "*** Titled Tuesday Blitz"]
[Site "Chess.com"]
[Date "2021.02.02"]
[Round "1"]
[White "PSvidler"]
[Black "petrkostenko"]
[Result "1-0"]
[WhiteElo "2904"]
[BlackElo "2459"]
[TimeControl "180+1"]
[EndTime "10:07:12 PST"]
[Termination "PSvidler won by resignation"]

1. e4 {[%clk 0:03:00.9]} 1... e6 {[%clk 0:02:59.1]} 2. d3 {[%clk 0:03:00.3]}
2... d5 {[%clk 0:02:56.5]} 3. Nd2 {[%clk 0:03:01.2]} 3... Nf6 {[%clk 0:02:55.4]}
4. Ngf3 {[%clk 0:03:00.6]} 4... Nc6 {[%clk 0:02:44.7]} 5. e5 {[%clk 0:02:51.6]}
5... Nd7 {[%clk 0:02:43.5]} 6. d4 {[%clk 0:02:52.5]} 6... Be7 {[%clk 0:02:38.6]}
7. Bb5 {[%clk 0:02:44.7]} 7... O-O {[%clk 0:02:22.1]} 8. O-O {[%clk 0:02:44]}
8... a6 {[%clk 0:02:10.9]} 9. Bxc6 {[%clk 0:02:34.3]} 9... bxc6 {[%clk
0:02:10.2]} 10. Nb3 {[%clk 0:02:35.2]} 10... c5 {[%clk 0:02:10.5]} 11. Na5
{[%clk 0:02:34.6]} 11... Nb8 {[%clk 0:02:09.4]} 12. c3 {[%clk 0:02:18.5]} 12...
cxd4 {[%clk 0:02:08.3]} 13. cxd4 {[%clk 0:02:18.4]} 13... c5 {[%clk 0:02:07.3]}
14. Bd2 {[%clk 0:02:18.3]} 14... cxd4 {[%clk 0:01:57.6]} 15. Nxd4 {[%clk
0:02:16.1]} 15... Bd7 {[%clk 0:01:54.9]} 16. Rc1 {[%clk 0:02:07.2]} 16... Qb6
{[%clk 0:01:48.1]} 17. Nab3 {[%clk 0:01:53]} 17... a5 {[%clk 0:01:45.3]} 18. Be3
{[%clk 0:01:52.6]} 18... Qb7 {[%clk 0:01:32]} 19. Qg4 {[%clk 0:01:51]} 19... Rc8
{[%clk 0:01:11.8]} 20. Bh6 {[%clk 0:01:41.5]} 20... g6 {[%clk 0:01:04.3]} 21.
Rxc8+ {[%clk 0:01:31]} 21... Bxc8 {[%clk 0:01:03.8]} 22. Rc1 {[%clk 0:01:29.2]}
22... a4 {[%clk 0:00:57.7]} 23. Nc5 {[%clk 0:01:25.3]} 23... Bxc5 {[%clk
0:00:57.5]} 24. Rxc5 {[%clk 0:01:24.8]} 24... Nd7 {[%clk 0:00:57.9]} 25. Qf4
{[%clk 0:01:22.6]} 25... Qxb2 {[%clk 0:00:46.8]} 26. h3 {[%clk 0:01:09.7]} 26...
Qb1+ {[%clk 0:00:36.2]} 27. Rc1 {[%clk 0:01:05.9]} 27... Qe4 {[%clk 0:00:36.2]}
28. Qg5 {[%clk 0:01:02.5]} 28... Ba6 {[%clk 0:00:20.2]} 29. Nc6 {[%clk
0:00:47.9]} 29... Re8 {[%clk 0:00:12.7]} 30. Ne7+ {[%clk 0:00:38.4]} 30... Kh8
{[%clk 0:00:12.1]} 31. Rc7 {[%clk 0:00:19.9]} 31... Qe1+ {[%clk 0:00:11.8]} 32.
Kh2 {[%clk 0:00:20]} 32... Qxe5+ {[%clk 0:00:12.4]} 33. f4 {[%clk 0:00:20.1]}
33... Qxg5 {[%clk 0:00:11.3]} 34. Bxg5 {[%clk 0:00:20.1]} 34... f6 {[%clk
0:00:09.5]} 35. Rxd7 {[%clk 0:00:20.1]} 35... Rxe7 {[%clk 0:00:09.3]} 36. Bxf6+
{[%clk 0:00:19]} 1-0

[Event "*** Titled Tuesday Blitz"]
[Site "Chess.com"]
[Date "2021.02.02"]
[Round "1"]
[White "HristosBanikas"]
[Black "VALPARAISO37"]
[Result "1-0"]
[WhiteElo "2853"]
[BlackElo "2435"]
[TimeControl "180+1"]
[EndTime "10:07:12 PST"]
[Termination "HristosBanikas won on time"]

1. d4 {[%clk 0:02:59.8]} 1... Nf6 {[%clk 0:02:58.6]} 2. c4 {[%clk 0:02:59.1]}
2... e6 {[%clk 0:02:58.3]} 3. Nf3 {[%clk 0:02:59.1]} 3... d5 {[%clk 0:02:57.6]}
4. g3 {[%clk 0:02:59.1]} 4... dxc4 {[%clk 0:02:56.9]} 5. Bg2 {[%clk 0:02:59]}
5... Nc6 {[%clk 0:02:57]} 6. O-O {[%clk 0:02:59.1]} 6... Rb8 {[%clk 0:02:56.7]}
7. e3 {[%clk 0:02:59.1]} 7... Be7 {[%clk 0:02:55.7]} 8. Qe2 {[%clk 0:02:58.5]}
8... b5 {[%clk 0:02:53.7]} 9. b3 {[%clk 0:02:58.6]} 9... O-O {[%clk 0:02:53.2]}
10. bxc4 {[%clk 0:02:56.5]} 10... bxc4 {[%clk 0:02:53.2]} 11. Qxc4 {[%clk
0:02:47.1]} 11... Nb4 {[%clk 0:02:53.1]} 12. Qc3 {[%clk 0:02:13.5]} 12... Ba6
{[%clk 0:02:49.7]} 13. Nbd2 {[%clk 0:02:12.8]} 13... Nfd5 {[%clk 0:02:44]} 14.
Qb2 {[%clk 0:02:06.8]} 14... Nd3 {[%clk 0:02:24.4]} 15. Qc2 {[%clk 0:02:05.2]}
15... N3b4 {[%clk 0:02:03.6]} 16. Qb3 {[%clk 0:01:54.1]} 16... Be2 {[%clk
0:01:48.3]} 17. Ne5 {[%clk 0:01:42.8]} 17... f6 {[%clk 0:01:42.4]} 18. Nec4
{[%clk 0:01:38.3]} 18... Nd3 {[%clk 0:01:35.3]} 19. Qc2 {[%clk 0:01:28.3]} 19...
N5b4 {[%clk 0:01:32.8]} 20. Qc3 {[%clk 0:01:28.4]} 20... Nd5 {[%clk 0:01:30.8]}
21. Qc2 {[%clk 0:01:27.5]} 21... N3b4 {[%clk 0:01:23.6]} 22. Qb3 {[%clk
0:01:25.8]} 22... c5 {[%clk 0:01:13.6]} 23. dxc5 {[%clk 0:01:19.9]} 23... Nd3
{[%clk 0:01:12.9]} 24. Qc2 {[%clk 0:01:19.9]} 24... N3b4 {[%clk 0:01:06]} 25.
Qe4 {[%clk 0:01:19.8]} 25... Qd7 {[%clk 0:01:00.1]} 26. Ba3 {[%clk 0:01:17]}
26... Bxc5 {[%clk 0:00:56.5]} 27. Rfc1 {[%clk 0:01:11.9]} 27... Bd3 {[%clk
0:00:55.9]} 28. Qg4 {[%clk 0:01:10.2]} 28... Bf5 {[%clk 0:00:51.5]} 29. Qd1
{[%clk 0:01:06.7]} 29... Bg6 {[%clk 0:00:45.8]} 30. Nb3 {[%clk 0:01:02.9]} 30...
Rfc8 {[%clk 0:00:29.7]} 31. e4 {[%clk 0:00:59.4]} 31... Bxf2+ {[%clk 0:00:23]}
32. Kxf2 {[%clk 0:00:58.1]} 32... Qb5 {[%clk 0:00:22.8]} 33. exd5 {[%clk
0:00:57.9]} 33... Rxc4 {[%clk 0:00:22.2]} 34. Bxb4 {[%clk 0:00:54.5]} 34... Qxb4
{[%clk 0:00:20.5]} 35. Rxc4 {[%clk 0:00:53.9]} 35... Qxc4 {[%clk 0:00:20.6]} 36.
Rc1 {[%clk 0:00:53.3]} 36... Qb4 {[%clk 0:00:20.1]} 37. dxe6 {[%clk 0:00:52.2]}
37... Qb6+ {[%clk 0:00:20.2]} 38. Qd4 {[%clk 0:00:50.5]} 38... Re8 {[%clk
0:00:20.2]} 39. Qxb6 {[%clk 0:00:50]} 39... axb6 {[%clk 0:00:20.5]} 40. Bd5
{[%clk 0:00:50.6]} 40... Bf5 {[%clk 0:00:20.2]} 41. Nd4 {[%clk 0:00:50.1]} 41...
g6 {[%clk 0:00:19.3]} 42. Nxf5 {[%clk 0:00:50]} 42... gxf5 {[%clk 0:00:19]} 43.
Rc7 {[%clk 0:00:50.3]} 43... Rc8 {[%clk 0:00:17.5]} 44. Rxc8+ {[%clk 0:00:48.7]}
44... Kg7 {[%clk 0:00:18.1]} 45. Rc7+ {[%clk 0:00:49.1]} 45... Kg6 {[%clk
0:00:18.2]} 46. e7 {[%clk 0:00:49.6]} 46... Kg5 {[%clk 0:00:18.8]} 47. e8=Q
{[%clk 0:00:50.4]} 47... f4 {[%clk 0:00:19.7]} 48. Rg7+ {[%clk 0:00:49.5]} 1-0

[Event "*** Titled Tuesday Blitz"]
[Site "Chess.com"]
[Date "2021.02.02"]
[Round "1"]
[White "catzapto"]
[Black "enriquetejedor"]
[Result "0-1"]
[WhiteElo "2104"]
[BlackElo "2505"]
[TimeControl "180+1"]
[EndTime "10:07:12 PST"]
[Termination "enriquetejedor won by resignation"]

1. e4 {[%clk 0:02:05.4]} 1... c5 {[%clk 0:02:46.8]} 2. Nf3 {[%clk 0:02:02.6]}
2... Nf6 {[%clk 0:02:46.1]} 3. e5 {[%clk 0:02:00.1]} 3... Nd5 {[%clk 0:02:46.2]}
4. c3 {[%clk 0:01:59.3]} 4... e6 {[%clk 0:02:40.7]} 5. d4 {[%clk 0:01:58.8]}
5... cxd4 {[%clk 0:02:41.1]} 6. cxd4 {[%clk 0:01:59.7]} 6... d6 {[%clk
0:02:40.7]} 7. Nc3 {[%clk 0:01:59.3]} 7... Nxc3 {[%clk 0:02:13.6]} 8. bxc3
{[%clk 0:01:58.4]} 8... Nd7 {[%clk 0:02:14.5]} 9. Bf4 {[%clk 0:01:48.3]} 9...
Qc7 {[%clk 0:01:49.9]} 10. Qd2 {[%clk 0:01:33.8]} 10... b6 {[%clk 0:01:35.6]}
11. Bb5 {[%clk 0:01:29.1]} 11... Bb7 {[%clk 0:01:30.5]} 12. O-O {[%clk 0:01:24]}
12... Be7 {[%clk 0:01:27.4]} 13. Bxd7+ {[%clk 0:01:22.2]} 13... Qxd7 {[%clk
0:01:26.6]} 14. exd6 {[%clk 0:01:22.3]} 14... Bxd6 {[%clk 0:01:26]} 15. Bxd6
{[%clk 0:01:19.6]} 15... Qxd6 {[%clk 0:01:24.4]} 16. Ne5 {[%clk 0:01:19.5]}
16... O-O {[%clk 0:01:23.1]} 17. Rac1 {[%clk 0:01:13.3]} 17... Rfd8 {[%clk
0:01:19.1]} 18. f4 {[%clk 0:01:12.1]} 18... Rac8 {[%clk 0:01:14.2]} 19. Rf2
{[%clk 0:00:45.8]} 19... Rc7 {[%clk 0:01:07.7]} 20. f5 {[%clk 0:00:33.6]} 20...
exf5 {[%clk 0:01:06.4]} 21. Rxf5 {[%clk 0:00:26.9]} 21... f6 {[%clk 0:01:05.2]}
22. Ng4 {[%clk 0:00:17.1]} 22... Qc6 {[%clk 0:00:49.6]} 23. Rf2 {[%clk
0:00:15.1]} 23... Rdc8 {[%clk 0:00:46]} 24. Qf4 {[%clk 0:00:14.1]} 24... Qe6
{[%clk 0:00:42.7]} 25. Qg3 {[%clk 0:00:14.1]} 25... Kh8 {[%clk 0:00:36.6]} 26.
h4 {[%clk 0:00:09.7]} 26... Rxc3 {[%clk 0:00:35.4]} 27. Rxc3 {[%clk 0:00:08.6]}
27... Qe1+ {[%clk 0:00:34.2]} 28. Kh2 {[%clk 0:00:07.5]} 28... Qxc3 {[%clk
0:00:33.3]} 29. Qxc3 {[%clk 0:00:06.8]} 29... Rxc3 {[%clk 0:00:32.5]} 30. h5
{[%clk 0:00:05.7]} 30... h6 {[%clk 0:00:31.1]} 31. g3 {[%clk 0:00:03.2]} 31...
Rc1 {[%clk 0:00:25.4]} 32. Ne3 {[%clk 0:00:02.4]} 32... Re1 {[%clk 0:00:24.4]}
33. Kh3 {[%clk 0:00:01.9]} 33... Rxe3 {[%clk 0:00:14.7]} 0-1

[Event "*** Titled Tuesday Blitz"]
[Site "Chess.com"]
[Date "2021.02.02"]
[Round "1"]
[White "kleopl"]
[Black "TheSodabread"]
[Result "1-0"]
[WhiteElo "2503"]
[BlackElo "2085"]
[TimeControl "180+1"]
[EndTime "10:07:12 PST"]
[Termination "kleopl won by checkmate"]

1. c4 {[%clk 0:03:00.4]} 1... e5 {[%clk 0:02:59.8]} 2. Nc3 {[%clk 0:02:59.8]}
2... Nc6 {[%clk 0:03:00.7]} 3. Nf3 {[%clk 0:02:59.4]} 3... f5 {[%clk 0:03:01.6]}
4. g3 {[%clk 0:02:56]} 4... e4 {[%clk 0:02:57.5]} 5. Nh4 {[%clk 0:02:53.6]} 5...
d6 {[%clk 0:02:53.9]} 6. d3 {[%clk 0:02:49.7]} 6... Be7 {[%clk 0:02:44]} 7. Ng2
{[%clk 0:02:36.4]} 7... Nf6 {[%clk 0:02:44.4]} 8. h4 {[%clk 0:02:33.7]} 8... O-O
{[%clk 0:02:38.7]} 9. Bg5 {[%clk 0:02:31.1]} 9... h6 {[%clk 0:02:38.3]} 10. Bxf6
{[%clk 0:02:28.4]} 10... Bxf6 {[%clk 0:02:39.2]} 11. Qd2 {[%clk 0:02:28.8]}
11... exd3 {[%clk 0:02:36.4]} 12. exd3 {[%clk 0:02:24.3]} 12... Nd4 {[%clk
0:02:35.3]} 13. O-O-O {[%clk 0:02:17.8]} 13... a5 {[%clk 0:02:33.4]} 14. Nf4
{[%clk 0:02:05.4]} 14... Re8 {[%clk 0:02:22.9]} 15. Bg2 {[%clk 0:02:03.6]} 15...
Rb8 {[%clk 0:02:16.5]} 16. Bd5+ {[%clk 0:01:59.9]} 16... Kh7 {[%clk 0:02:15.2]}
17. Bf7 {[%clk 0:01:48.6]} 17... Re7 {[%clk 0:01:56.5]} 18. Bg6+ {[%clk
0:01:48]} 18... Kg8 {[%clk 0:01:55.8]} 19. Ncd5 {[%clk 0:01:44.3]} 19... Rd7
{[%clk 0:01:44.6]} 20. Nh5 {[%clk 0:01:38.4]} 20... Be7 {[%clk 0:01:19.9]} 21.
Qxa5 {[%clk 0:01:34.3]} 21... c6 {[%clk 0:01:10.1]} 22. Nb6 {[%clk 0:01:17.1]}
22... Qc7 {[%clk 0:00:50.8]} 23. Qa7 {[%clk 0:01:14.1]} 23... Rd8 {[%clk
0:00:48.1]} 24. Nxc8 {[%clk 0:01:07.7]} 24... c5 {[%clk 0:00:33.1]} 25. Nxe7+
{[%clk 0:00:47.5]} 25... Qxe7 {[%clk 0:00:34]} 26. Rhe1 {[%clk 0:00:46.3]} 26...
Qd7 {[%clk 0:00:14.3]} 27. Qa3 {[%clk 0:00:16.2]} 27... Ra8 {[%clk 0:00:14.5]}
28. Qc3 {[%clk 0:00:16.3]} 28... Rxa2 {[%clk 0:00:14.4]} 29. Re3 {[%clk
0:00:14.6]} 29... Ra1+ {[%clk 0:00:05.9]} 30. Kd2 {[%clk 0:00:14.6]} 30... Rxd1+
{[%clk 0:00:06.8]} 31. Kxd1 {[%clk 0:00:15.4]} 31... Qa4+ {[%clk 0:00:07.7]} 32.
Ke1 {[%clk 0:00:14.1]} 32... Nc2+ {[%clk 0:00:07.1]} 33. Ke2 {[%clk 0:00:13.1]}
33... Nxe3 {[%clk 0:00:04.1]} 34. fxe3 {[%clk 0:00:14]} 34... Rf8 {[%clk
0:00:03.5]} 35. Qxg7# {[%clk 0:00:13.2]} 1-0

[Event "*** Titled Tuesday Blitz"]
[Site "Chess.com"]
[Date "2021.02.02"]
[Round "1"]
[White "BvsN"]
[Black "Aemulus20"]
[Result "1-0"]
[WhiteElo "2372"]
[BlackElo "2648"]
[TimeControl "180+1"]
[EndTime "10:07:13 PST"]
[Termination "BvsN won by resignation"]

1. c4 {[%clk 0:03:00.9]} 1... c5 {[%clk 0:02:59.6]} 2. Nf3 {[%clk 0:02:59.2]}
2... g6 {[%clk 0:02:59.7]} 3. e4 {[%clk 0:02:58.1]} 3... Bg7 {[%clk 0:02:59.5]}
4. d4 {[%clk 0:02:57.4]} 4... cxd4 {[%clk 0:03:00.4]} 5. Nxd4 {[%clk 0:02:57.2]}
5... Nc6 {[%clk 0:03:01.3]} 6. Be3 {[%clk 0:02:56.6]} 6... Nf6 {[%clk
0:03:01.7]} 7. Nc3 {[%clk 0:02:56.5]} 7... d6 {[%clk 0:03:02.2]} 8. Be2 {[%clk
0:02:45.4]} 8... Nxd4 {[%clk 0:03:01.5]} 9. Bxd4 {[%clk 0:02:44.9]} 9... O-O
{[%clk 0:03:02.4]} 10. O-O {[%clk 0:02:42.7]} 10... a5 {[%clk 0:03:00.8]} 11. b3
{[%clk 0:02:38.3]} 11... Bd7 {[%clk 0:03:00.4]} 12. Qd3 {[%clk 0:02:35.7]} 12...
Bc6 {[%clk 0:03:00.3]} 13. Rfd1 {[%clk 0:02:23.6]} 13... Nd7 {[%clk 0:03:00]}
14. Bxg7 {[%clk 0:02:22.2]} 14... Kxg7 {[%clk 0:03:00.9]} 15. Qd4+ {[%clk
0:02:18.9]} 15... f6 {[%clk 0:03:00.3]} 16. Bg4 {[%clk 0:02:05.5]} 16... Nc5
{[%clk 0:02:58.5]} 17. Rac1 {[%clk 0:01:47.3]} 17... b6 {[%clk 0:02:08.6]} 18.
Bh3 {[%clk 0:01:45.7]} 18... Qc7 {[%clk 0:01:58.5]} 19. f4 {[%clk 0:01:43.3]}
19... Rad8 {[%clk 0:01:55.1]} 20. Qe3 {[%clk 0:01:33]} 20... Qb7 {[%clk
0:01:48.4]} 21. Nd5 {[%clk 0:01:32.1]} 21... Rfe8 {[%clk 0:01:25.2]} 22. Re1
{[%clk 0:01:32]} 22... e6 {[%clk 0:01:23.2]} 23. Nc3 {[%clk 0:01:31.9]} 23... f5
{[%clk 0:01:16.9]} 24. e5 {[%clk 0:01:20.4]} 24... d5 {[%clk 0:00:57.6]} 25.
cxd5 {[%clk 0:01:15.5]} 25... Bxd5 {[%clk 0:00:55]} 26. Rcd1 {[%clk 0:00:57.9]}
26... Bc6 {[%clk 0:00:46.2]} 27. Rd6 {[%clk 0:00:57.6]} 27... Rxd6 {[%clk
0:00:33]} 28. exd6 {[%clk 0:00:57.7]} 28... Nd7 {[%clk 0:00:33.9]} 29. Rd1
{[%clk 0:00:50.8]} 29... e5 {[%clk 0:00:29.6]} 30. g3 {[%clk 0:00:39.5]} 30...
b5 {[%clk 0:00:28.6]} 31. Bf1 {[%clk 0:00:31]} 31... b4 {[%clk 0:00:23]} 32. Na4
{[%clk 0:00:30.1]} 32... Bxa4 {[%clk 0:00:16.9]} 33. bxa4 {[%clk 0:00:30]} 33...
Qb8 {[%clk 0:00:07]} 34. Bb5 {[%clk 0:00:27.8]} 34... Qd8 {[%clk 0:00:05.6]} 35.
Bxd7 {[%clk 0:00:25.8]} 35... Qxd7 {[%clk 0:00:06.5]} 36. fxe5 {[%clk
0:00:26.3]} 36... Qe6 {[%clk 0:00:06.9]} 37. d7 {[%clk 0:00:22.4]} 37... Rd8
{[%clk 0:00:07.1]} 38. Qd4 {[%clk 0:00:22.4]} 38... Qxa2 {[%clk 0:00:06.1]} 39.
e6+ {[%clk 0:00:21.6]} 39... Kh6 {[%clk 0:00:06.6]} 40. e7 {[%clk 0:00:18.8]}
1-0